bitfinex/quotes_BTCUSD_20250904
["timestamp","ask_amount","ask_price","bid_price","bid_amount"]
[1756997206235,0.34456132,110210.0,110200.0,0.00496001]
[1756997207061,0.34456132,110210.0,110200.0,0.00596001]
[1756997207203,0.33615173,110210.0,110200.0,0.00596001]
[1756997207421,0.33615173,110210.0,110200.0,0.18744821]
[1756997207422,0.18147173,110210.0,110200.0,0.18744821]
[1756997207622,0.18145527,110220.0,110210.0,0.18147173]
[1756997207904,0.36384934,110220.0,110210.0,0.18643173]
[1756997208285,0.15160547,110220.0,110210.0,0.18643173]
[1756997208707,0.33306074,110220.0,110210.0,0.18643173]
[1756997208898,0.15160547,110220.0,110210.0,0.18643173]
[1756997209090,0.00841234,110220.0,110210.0,0.18643173]
[1756997209307,0.60438391,110240.0,110220.0,0.1814418]
[1756997209308,0.19049346,110240.0,110220.0,0.1814418]
[1756997209517,0.38972192,110240.0,110230.0,0.00201]
[1756997209729,0.38972192,110240.0,110230.0,0.00496]
[1756997209941,0.38972192,110240.0,110230.0,0.1863988]
[1756997210395,0.20922242,110240.0,110230.0,0.1863988]
[1756997210607,0.36390242,110240.0,110230.0,0.1863988]
[1756997210834,0.36490242,110240.0,110230.0,0.1863988]
[1756997211059,0.00941419,110240.0,110230.0,0.1863988]
[1756997211274,0.00841419,110240.0,110230.0,0.1863988]
[1756997212638,0.00841419,110240.0,110230.0,0.4168788]
[1756997212872,0.02311648,110250.0,110240.0,0.18142235]
[1756997213085,0.02779919,110250.0,110240.0,0.18337235]
[1756997213308,0.02779919,110250.0,110240.0,0.18538235]
[1756997213515,0.00841394,110250.0,110240.0,0.18538235]
[1756997214170,0.00888349,110250.0,110240.0,0.18538235]
[1756997215230,0.00046955,110250.0,110240.0,0.33998235]
[1756997215648,0.00888103,110250.0,110240.0,0.33998235]
[1756997215857,0.00046955,110250.0,110240.0,0.33998235]
[1756997216080,0.00046955,110250.0,110240.0,0.18538235]
[1756997216340,0.00046955,110250.0,110240.0,1.17059836]
[1756997216579,0.00046955,110250.0,110240.0,1.32515836]
[1756997216799,0.00046955,110250.0,110240.0,1.32615836]
[1756997217219,0.00046955,110250.0,110240.0,1.32515836]
[1756997217446,0.00046955,110250.0,110240.0,1.32615836]
[1756997217660,0.00046955,110250.0,110240.0,1.32915836]
[1756997217896,0.00046955,110250.0,110240.0,1.32515836]
[1756997218356,0.00046955,110250.0,110240.0,0.93751716]
[1756997218572,0.00046955,110250.0,110240.0,1.72087956]
[1756997219003,0.00046955,110250.0,110240.0,1.56627956]
[1756997219250,0.00046955,110250.0,110240.0,1.72099956]
[1756997219681,0.00046955,110250.0,110240.0,1.39252281]
[1756997219903,0.00046955,110250.0,110240.0,1.54720281]
[1756997220689,0.00046955,110250.0,110240.0,1.39252281]
[1756997220888,0.00046955,110250.0,110240.0,1.94724281]
[1756997221220,0.00046955,110250.0,110240.0,1.79252281]
[1756997221437,0.00046955,110250.0,110240.0,1.94724281]
[1756997223372,0.00046955,110250.0,110240.0,1.79252281]
[1756997223583,0.00046955,110250.0,110240.0,1.94720281]
[1756997225089,0.00046955,110250.0,110240.0,1.94724281]
[1756997225949,0.00046955,110250.0,110240.0,1.79252281]
[1756997226158,0.00046955,110250.0,110240.0,1.94724281]
[1756997226595,0.00046955,110250.0,110240.0,1.79252281]
[1756997226859,0.00046955,110250.0,110240.0,1.00175716]
[1756997227080,0.00046955,110250.0,110240.0,1.34175716]
[1756997227299,0.00046955,110250.0,110240.0,0.94175716]
[1756997227741,0.00046955,110250.0,110240.0,0.52595716]
[1756997227959,0.00046955,110250.0,110240.0,0.35013834]
[1756997228420,0.00046955,110250.0,110240.0,0.50509834]
[1756997228640,0.00046955,110250.0,110240.0,0.84509834]
[1756997230914,0.00046955,110250.0,110240.0,1.47164281]
[1756997231116,0.00046955,110250.0,110240.0,1.54583281]
[1756997232533,0.00046955,110250.0,110240.0,0.94022716]
[1756997232735,0.00046955,110250.0,110240.0,1.54583281]
[1756997233249,0.00046955,110250.0,110240.0,1.94583281]
[1756997240220,0.00046955,110250.0,110240.0,1.94567281]
[1756997240555,0.00046955,110250.0,110240.0,1.34006716]
[1756997240771,0.00046955,110250.0,110240.0,1.94567281]
[1756997241206,0.00046955,110250.0,110240.0,1.71668281]
[1756997241423,0.00046955,110250.0,110240.0,1.24493834]
[1756997241653,0.00046955,110250.0,110240.0,0.86587716]
[1756997241884,0.00046955,110250.0,110240.0,1.47148281]
[1756997242565,0.00247955,110250.0,110240.0,0.34718834]
[1756997242783,0.00247955,110250.0,110240.0,0.34517834]
[1756997242784,0.18689544,110250.0,110240.0,0.34517834]
[1756997243013,0.18689544,110250.0,110240.0,0.40826235]
[1756997243485,0.00548955,110250.0,110240.0,0.18742235]
[1756997243712,0.18689544,110250.0,110240.0,0.34242235]
[1756997244385,0.18689544,110250.0,110240.0,0.18742235]
[1756997244605,0.00548955,110250.0,110240.0,0.34238235]
[1756997245061,0.18689544,110250.0,110240.0,0.34238235]
[1756997245278,0.19534181,110250.0,110240.0,0.18742235]
[1756997245494,0.19534181,110250.0,110240.0,0.16092]
[1756997245703,0.21480384,110250.0,110240.0,0.16092]
[1756997245918,0.21480384,110250.0,110240.0,0.006]
[1756997246141,0.21480384,110250.0,110240.0,0.16092]
[1756997246825,0.82041345,110250.0,110240.0,0.16092]
[1756997247039,0.2148078,110250.0,110240.0,0.16092]
[1756997247265,0.2148078,110250.0,110240.0,0.006]
[1756997247482,0.2148078,110250.0,110240.0,0.16088]
[1756997247703,0.82041345,110250.0,110240.0,0.006]
[1756997247923,0.82041345,110250.0,110240.0,0.16084]
[1756997247924,0.83832379,110250.0,110240.0,0.16084]
[1756997248147,0.23271814,110250.0,110240.0,0.34226235]
[1756997249050,0.83733232,110250.0,110240.0,0.006]
[1756997249271,1.1406651,110250.0,110240.0,0.006]
[1756997249492,1.14066249,110250.0,110240.0,0.006]
[1756997249948,1.14066249,110250.0,110240.0,0.002]
[1756997250164,0.1814388,110230.0,110220.0,0.15484]
[1756997250382,0.1814388,110230.0,110220.0,0.33629527]
[1756997250600,0.18444716,110240.0,110220.0,0.33840527]
[1756997250829,0.00201,110230.0,110220.0,0.33840527]
[1756997251514,0.18142235,110240.0,110230.0,0.1814388]
[1756997251741,0.02995173,110240.0,110230.0,0.1835488]
[1756997251957,0.21137408,110240.0,110230.0,0.1835488]
[1756997252853,0.02794173,110240.0,110230.0,0.1835488]
[1756997253274,0.20936408,110240.0,110230.0,0.1855488]
[1756997253703,0.20936408,110240.0,110230.0,0.1865488]
[1756997254146,0.21137408,110240.0,110230.0,0.1865488]
[1756997254368,0.21137408,110240.0,110230.0,0.1896188]
[1756997254369,0.01948482,110240.0,110230.0,0.1896188]
[1756997254576,0.00046955,110250.0,110240.0,0.18142235]
[1756997254805,0.81541621,110250.0,110240.0,0.33634235]
[1756997255017,0.85846203,110250.0,110240.0,0.33845235]
[1756997255232,0.86147203,110250.0,110240.0,0.33634235]
[1756997255443,0.88010129,110250.0,110240.0,0.15492]
[1756997255660,0.88010129,110250.0,110240.0,0.15718777]
[1756997256096,0.88010129,110250.0,110240.0,0.15818777]
[1756997256314,0.88010129,110250.0,110240.0,0.001]
[1756997256530,1.22729382,110250.0,110240.0,0.001]
[1756997256964,1.18350828,110250.0,110240.0,0.001]
[1756997257188,1.05525067,110250.0,110240.0,0.001]
[1756997257403,1.16220022,110250.0,110240.0,0.001]
[1756997257877,1.13544758,110250.0,110240.0,0.001]
[1756997258116,0.98036758,110250.0,110240.0,0.001]
[1756997258330,1.15978206,110250.0,110240.0,0.001]
[1756997259487,1.12729339,110250.0,110240.0,0.001]
[1756997260150,0.97221339,110250.0,110240.0,0.001]
[1756997260388,1.12725339,110250.0,110240.0,0.001]
[1756997261288,1.11035172,110250.0,110240.0,0.001]
[1756997261512,1.07756641,110250.0,110240.0,0.001]
[1756997262362,0.8762109,110250.0,110240.0,0.001]
[1756997262568,1.05761679,110250.0,110240.0,0.001]
[1756997264241,1.08436943,110250.0,110240.0,0.001]
[1756997266200,1.51628542,110250.0,110240.0,0.001]
[1756997266416,1.58872542,110250.0,110240.0,0.001]
[1756997266666,2.26157183,110250.0,110240.0,0.001]
[1756997266880,1.6644008,110250.0,110240.0,0.001]
[1756997267096,1.641306,110250.0,110240.0,0.001]
[1756997267309,1.54083539,110250.0,110240.0,0.001]
[1756997268363,1.38591539,110250.0,110240.0,0.001]
[1756997268573,1.54087539,110250.0,110240.0,0.001]
[1756997268779,1.41868227,110250.0,110240.0,0.001]
[1756997269211,1.54930779,110250.0,110240.0,0.001]
[1756997269859,1.31347539,110250.0,110240.0,0.001]
[1756997270074,1.44164275,110250.0,110240.0,0.001]
[1756997270509,1.46839539,110250.0,110240.0,0.001]
[1756997270687,1.37855212,110250.0,110240.0,0.001]
[1756997270917,1.35311725,110250.0,110240.0,0.001]
[1756997271335,1.35311091,110250.0,110240.0,0.001]
[1756997271541,1.36154527,110250.0,110240.0,0.001]
[1756997271776,1.36178527,110250.0,110240.0,0.0031]
[1756997271984,0.70412844,110250.0,110240.0,0.00626]
[1756997272224,0.95873016,110250.0,110240.0,0.00626]
[1756997272910,0.71165417,110250.0,110240.0,0.00626]
[1756997273152,0.86681417,110250.0,110240.0,0.18768235]
[1756997273575,0.80524305,110250.0,110240.0,0.18768235]
[1756997274860,0.61744515,110250.0,110240.0,0.18768235]
[1756997275044,0.63568212,110250.0,110240.0,0.18768235]
[1756997275255,0.18140589,110250.0,110240.0,0.18768235]
[1756997275769,0.95118467,110260.0,110240.0,0.18768235]
[1756997275986,0.18140589,110250.0,110240.0,0.18460739]
[1756997276135,0.95118467,110260.0,110240.0,0.18460739]
[1756997276351,0.18140589,110250.0,110240.0,0.18460739]
[1756997276551,0.804787,110250.0,110240.0,0.00108504]
[1756997276773,0.804787,110250.0,110240.0,0.00634504]
[1756997276974,0.19918135,110250.0,110240.0,0.00761281]
[1756997277153,0.804787,110250.0,110240.0,0.00761281]
[1756997277539,0.804787,110250.0,110240.0,0.18903516]
[1756997277752,0.804787,110250.0,110240.0,0.18676739]
[1756997278160,0.804787,110250.0,110240.0,0.18776739]
[1756997279951,0.95118467,110260.0,110240.0,0.18776739]
[1756997280140,0.34557902,110260.0,110250.0,0.00316]
[1756997280346,0.0183886,110260.0,110250.0,0.18666589]
[1756997280527,0.94197868,110270.0,110250.0,0.18666589]
[1756997280756,0.35586387,110270.0,110260.0,0.18454944]
[1756997281044,0.96150952,110270.0,110260.0,0.18664944]
[1756997281657,0.57062874,110270.0,110260.0,0.18564944]
[1756997281867,0.72562874,110270.0,110260.0,0.18564944]
[1756997282073,0.72561261,110280.0,110270.0,0.18137299]
[1756997282291,0.74510004,110280.0,110270.0,0.0021]
[1756997282511,0.74706004,110280.0,110270.0,0.18347299]
[1756997282709,0.74510004,110280.0,110270.0,0.18347299]
[1756997283124,0.74509968,110280.0,110270.0,0.18347299]
[1756997283335,0.33635654,110280.0,110270.0,0.18347299]
[1756997283557,0.54425571,110280.0,110270.0,0.18347299]
[1756997283786,0.72561225,110280.0,110270.0,0.18663299]
[1756997284235,0.57061225,110280.0,110270.0,0.18663299]
[1756997284509,0.72561225,110280.0,110270.0,0.18763299]
[1756997284711,0.72561225,110280.0,110270.0,0.00626]
[1756997284934,0.74509323,110280.0,110270.0,0.00852716]
[1756997285159,0.76306168,110280.0,110270.0,0.00852716]
[1756997285381,0.7435007,110280.0,110270.0,0.18990015]
[1756997285612,0.21772434,110300.0,110280.0,0.18135654]
[1756997285836,0.64890203,110300.0,110280.0,0.18135654]
[1756997286049,0.78695601,110300.0,110290.0,0.0021]
[1756997286258,0.18135654,110280.0,110270.0,0.001]
[1756997286484,0.72553225,110280.0,110270.0,0.001]
[1756997286689,1.11674796,110280.0,110270.0,0.001]
[1756997286899,1.11679488,110280.0,110270.0,0.001]
[1756997287120,0.18138944,110260.0,110250.0,0.34539618]
[1756997287335,0.57064515,110260.0,110250.0,0.44047217]
[1756997287554,0.38925571,110260.0,110250.0,0.44257217]
[1756997287775,0.57064515,110260.0,110250.0,0.28765217]
[1756997287996,0.57064515,110260.0,110250.0,0.43350188]
[1756997288448,0.38925571,110260.0,110250.0,0.34158589]
[1756997289286,0.5706287,110270.0,110260.0,0.18138944]
[1756997289560,0.38925571,110270.0,110260.0,0.18634944]
[1756997289784,0.1996994,110280.0,110270.0,0.18137299]
[1756997290007,0.1996994,110280.0,110270.0,0.18633299]
[1756997290221,0.58895511,110280.0,110270.0,0.18633299]
[1756997290677,0.59101511,110280.0,110270.0,0.00496]
[1756997290902,0.18137299,110270.0,110260.0,0.43115543]
[1756997291095,0.38925571,110270.0,110260.0,0.43115543]
[1756997291346,0.58895511,110280.0,110270.0,0.18137299]
[1756997291562,0.58895511,110280.0,110270.0,0.18633299]
[1756997291983,0.58895511,110280.0,110270.0,0.18733299]
[1756997292209,0.1996994,110280.0,110270.0,0.00596]
[1756997292433,0.58895511,110280.0,110270.0,0.00822716]
[1756997292684,0.58895511,110280.0,110270.0,0.18960015]
[1756997292935,0.58895511,110280.0,110270.0,0.18733299]
[1756997293419,0.58895511,110280.0,110270.0,0.00295]
[1756997293420,0.59101511,110280.0,110270.0,0.00295]
[1756997293684,0.59400511,110280.0,110270.0,0.001]
[1756997293927,0.59400511,110280.0,110270.0,0.002]
[1756997295173,0.98326082,110280.0,110270.0,0.002]
[1756997295583,0.59400511,110280.0,110270.0,0.002]
[1756997297279,0.2017594,110280.0,110270.0,0.002]
[1756997297486,0.74577511,110280.0,110270.0,0.002]
[1756997297711,0.74876511,110280.0,110270.0,0.002]
[1756997298470,1.3218528,110280.0,110270.0,0.002]
[1756997298674,1.75544544,110280.0,110270.0,0.002]
[1756997298880,1.82607544,110280.0,110270.0,0.002]
[1756997299078,1.87278974,110280.0,110270.0,0.002]
[1756997299785,0.18140589,110250.0,110240.0,0.07354631]
[1756997300000,0.7274816,110250.0,110240.0,0.07549631]
[1756997300204,0.7274816,110250.0,110240.0,0.07850631]
[1756997300380,0.7254216,110250.0,110240.0,0.08077408]
[1756997300588,0.5706616,110250.0,110240.0,0.08077408]
[1756997300810,0.5706616,110250.0,110240.0,0.18865012]
[1756997301010,0.18140589,110250.0,110240.0,0.18838235]
[1756997301212,0.72542005,110260.0,110240.0,0.28029834]
[1756997301426,0.57066005,110260.0,110250.0,0.00301]
[1756997301591,0.57066005,110260.0,110250.0,0.18636589]
[1756997301994,0.57066005,110260.0,110250.0,0.00496]
[1756997302189,0.57066005,110260.0,110250.0,0.00722757]
[1756997302566,0.57066005,110260.0,110250.0,0.18963346]
[1756997302773,0.57066005,110260.0,110250.0,0.18736589]
[1756997302984,0.57066005,110260.0,110250.0,0.00596]
[1756997303186,0.57066005,110260.0,110250.0,0.18963346]
[1756997303419,0.57066005,110260.0,110250.0,0.00596]
[1756997303632,0.57066005,110260.0,110250.0,0.00822757]
[1756997303839,0.57066005,110260.0,110250.0,0.00922757]
[1756997304256,0.57066005,110260.0,110250.0,0.19063346]
[1756997304458,0.57272005,110260.0,110250.0,0.002]
[1756997305556,0.18140434,110260.0,110250.0,0.00696]
[1756997305708,0.57066005,110260.0,110250.0,0.00696]
[1756997306131,0.57272005,110260.0,110250.0,0.002]
[1756997306335,0.57571005,110260.0,110250.0,0.002]
[1756997306600,0.57272005,110260.0,110250.0,0.002]
[1756997307036,0.57571005,110260.0,110250.0,0.002]
[1756997307475,0.57272005,110260.0,110250.0,0.002]
[1756997307685,0.57066005,110260.0,110250.0,0.00696]
[1756997307895,0.72538005,110260.0,110250.0,0.00696]
[1756997308096,0.73043005,110260.0,110250.0,0.002]
[1756997309938,0.38925571,110260.0,110250.0,0.00395]
[1756997310148,0.72534005,110260.0,110250.0,0.00696]
[1756997310608,0.57066005,110260.0,110250.0,0.00696]
[1756997310831,0.72534005,110260.0,110250.0,0.00696]
[1756997311059,0.57066005,110260.0,110250.0,0.18836589]
[1756997311445,0.18140187,110270.0,110250.0,0.18836589]
[1756997311649,0.57065758,110270.0,110250.0,0.34003589]
[1756997311872,0.57065758,110270.0,110260.0,0.1866668]
[1756997312085,0.5706287,110270.0,110260.0,0.18634944]
[1756997312480,0.58895511,110280.0,110260.0,0.18634944]
[1756997312745,0.74359511,110280.0,110270.0,0.00301]
[1756997312960,0.18237299,110270.0,110260.0,0.18439944]
[1756997313182,0.5716287,110270.0,110260.0,0.18439944]
[1756997313404,0.5706287,110270.0,110260.0,0.18634944]
[1756997313812,0.39025571,110270.0,110260.0,0.18634944]
[1756997314121,0.39025571,110270.0,110260.0,0.27826543]
[1756997314534,0.001,110270.0,110260.0,0.27826543]
[1756997314986,0.18237299,110270.0,110260.0,0.27826543]
[1756997315363,0.001,110270.0,110260.0,0.27826543]
[1756997315766,0.74355511,110280.0,110270.0,0.18137299]
[1756997315979,0.74355511,110280.0,110270.0,0.18633299]
[1756997315980,0.38930263,110280.0,110270.0,0.18633299]
[1756997316211,4.692e-05,110280.0,110270.0,0.34085299]
[1756997316950,4.692e-05,110280.0,110270.0,0.43276898]
[1756997317478,0.00104692,110280.0,110270.0,0.43276898]
[1756997318086,0.00104692,110280.0,110270.0,0.27824898]
[1756997318304,0.00104692,110280.0,110270.0,0.43284898]
[1756997319055,4.692e-05,110280.0,110270.0,0.43284898]
[1756997319663,4.692e-05,110280.0,110270.0,0.27824898]
[1756997319905,4.692e-05,110280.0,110270.0,0.43280898]
[1756997320338,4.692e-05,110280.0,110270.0,0.43380898]
[1756997320550,4.692e-05,110280.0,110270.0,0.43580898]
[1756997323300,4.692e-05,110280.0,110270.0,0.6421878]
[1756997323503,4.692e-05,110280.0,110270.0,0.7966278]
[1756997325530,4.692e-05,110280.0,110270.0,0.83017697]
[1756997327930,4.692e-05,110280.0,110270.0,1.21943268]
[1756997328542,4.692e-05,110280.0,110270.0,0.83017697]
[1756997329606,4.692e-05,110280.0,110270.0,1.20360074]
[1756997330243,4.692e-05,110280.0,110270.0,0.67573697]
[1756997330450,4.692e-05,110280.0,110270.0,1.23077269]
[1756997331054,4.692e-05,110280.0,110270.0,1.22977269]
[1756997331459,4.692e-05,110280.0,110270.0,1.22877269]
[1756997331665,4.692e-05,110280.0,110270.0,1.22777269]
[1756997331930,4.692e-05,110280.0,110270.0,0.85534892]
[1756997332132,4.692e-05,110280.0,110270.0,1.22877269]
[1756997332346,4.692e-05,110280.0,110270.0,1.22777269]
[1756997332753,4.692e-05,110280.0,110270.0,1.07641269]
[1756997332963,4.692e-05,110280.0,110270.0,1.23077269]
[1756997333172,0.1661396,110290.0,110280.0,0.20229536]
[1756997333376,0.1661396,110290.0,110280.0,0.29931639]
[1756997334762,0.1661396,110290.0,110280.0,0.30131639]
[1756997335162,0.3495797,110290.0,110280.0,0.27535757]
[1756997335398,0.1682396,110290.0,110280.0,0.42971757]
[1756997335597,0.1682396,110290.0,110280.0,0.43374757]
[1756997335824,0.1682396,110290.0,110280.0,0.27938757]
[1756997336020,0.3495797,110290.0,110280.0,0.43374757]
[1756997336434,0.3495797,110290.0,110280.0,0.43673757]
[1756997336596,0.1834401,110290.0,110280.0,0.43374757]
[1756997336980,0.93351764,110290.0,110280.0,0.00408504]
[1756997338274,0.56009387,110290.0,110280.0,0.00408504]
[1756997339408,0.93351764,110290.0,110280.0,0.00408504]
[1756997339634,1.33369405,110290.0,110280.0,0.00408504]
[1756997339860,1.36095425,110290.0,110280.0,0.00408504]
[1756997340323,0.96077784,110290.0,110280.0,8.504e-05]
[1756997340742,0.96077784,110290.0,110280.0,0.00108504]
[1756997340975,1.33420161,110290.0,110280.0,0.00108504]
[1756997341210,1.89763446,110290.0,110280.0,8.504e-05]
[1756997341427,1.9243871,110290.0,110280.0,8.504e-05]
[1756997341690,1.55172365,110290.0,110280.0,0.00108504]
[1756997341870,1.70608365,110290.0,110280.0,0.00108504]
[1756997342079,1.70608365,110290.0,110280.0,0.00208504]
[1756997342290,1.70608365,110290.0,110280.0,0.00108504]
[1756997342730,1.70608365,110290.0,110280.0,0.00208504]
[1756997342975,1.55172365,110290.0,110280.0,0.00208504]
[1756997343186,1.70608365,110290.0,110280.0,0.00108504]
[1756997343597,1.56450335,110290.0,110280.0,8.504e-05]
[1756997344011,1.56650335,110290.0,110280.0,8.504e-05]
[1756997344359,1.56750335,110290.0,110280.0,8.504e-05]
[1756997344559,1.50941649,110290.0,110280.0,8.504e-05]
[1756997345802,1.35505649,110290.0,110280.0,8.504e-05]
[1756997346069,1.50941649,110290.0,110280.0,8.504e-05]
[1756997346712,1.35505649,110290.0,110280.0,8.504e-05]
[1756997346914,1.48266385,110290.0,110280.0,8.504e-05]
[1756997347117,1.25487385,110290.0,110280.0,8.504e-05]
[1756997347453,1.40923385,110290.0,110280.0,8.504e-05]
[1756997350203,0.64561629,110290.0,110280.0,0.00205504]
[1756997350402,1.15972786,110290.0,110280.0,0.00205504]
[1756997350625,0.97408786,110290.0,110280.0,0.00205504]
[1756997351193,0.97408786,110290.0,110280.0,8.504e-05]
[1756997353120,0.76708782,110290.0,110280.0,0.00205504]
[1756997353435,0.94842792,110290.0,110280.0,8.504e-05]
[1756997353655,0.95044792,110290.0,110280.0,8.504e-05]
[1756997354138,0.95044792,110290.0,110280.0,0.00205504]
[1756997354343,0.95044792,110290.0,110280.0,8.504e-05]
[1756997355234,0.95329792,110290.0,110280.0,8.504e-05]
[1756997355606,0.95044792,110290.0,110280.0,8.504e-05]
[1756997356216,0.95044792,110290.0,110280.0,0.00205504]
[1756997356423,0.94842792,110290.0,110280.0,0.00514504]
[1756997356623,0.95040792,110290.0,110280.0,8.504e-05]
[1756997357000,0.95329792,110290.0,110280.0,8.504e-05]
[1756997357192,1.41196655,110290.0,110280.0,8.504e-05]
[1756997363826,1.25760655,110290.0,110280.0,8.504e-05]
[1756997364080,1.38232391,110290.0,110280.0,8.504e-05]
[1756997364284,1.23085391,110290.0,110280.0,8.504e-05]
[1756997364492,1.38521391,110290.0,110280.0,8.504e-05]
[1756997365038,1.22796391,110290.0,110280.0,8.504e-05]
[1756997365257,1.22796391,110290.0,110280.0,0.00514504]
[1756997365434,1.52366869,110290.0,110280.0,0.00514504]
[1756997366321,1.54323659,110290.0,110280.0,0.00514504]
[1756997366525,1.59313063,110290.0,110280.0,0.00514504]
[1756997366974,1.43877063,110290.0,110280.0,0.00514504]
[1756997367197,1.43877063,110290.0,110280.0,8.504e-05]
[1756997367406,1.53452451,110290.0,110280.0,0.00514504]
[1756997367610,1.56178726,110290.0,110280.0,0.00514504]
[1756997368486,1.56179122,110290.0,110280.0,0.00514504]
[1756997369746,1.56032122,110290.0,110280.0,0.00514504]
[1756997371296,1.56179122,110290.0,110280.0,0.00514504]
[1756997371477,1.56032122,110290.0,110280.0,0.00514504]
[1756997372533,1.54333967,110290.0,110280.0,0.00514504]
[1756997372835,0.95034955,110290.0,110280.0,0.00514504]
[1756997373041,0.60185412,110290.0,110280.0,0.00514504]
[1756997373299,0.72895137,110290.0,110280.0,0.00514504]
[1756997374464,0.72891137,110290.0,110280.0,0.00514504]
[1756997374667,0.72891137,110290.0,110280.0,0.18650158]
[1756997374854,0.70934627,110290.0,110280.0,0.18650158]
[1756997375258,0.70934627,110290.0,110280.0,0.00514504]
[1756997376119,0.70934627,110290.0,110280.0,0.18650158]
[1756997376543,0.70934627,110290.0,110280.0,0.00514504]
[1756997376993,0.70934627,110290.0,110280.0,0.00614504]
[1756997377199,0.70934627,110290.0,110280.0,0.18750158]
[1756997377573,0.70934627,110290.0,110280.0,0.00614504]
[1756997379585,0.70934627,110290.0,110280.0,0.18750158]
[1756997379789,0.3356601,110290.0,110280.0,0.18750158]
[1756997380029,0.70934627,110290.0,110280.0,0.18750158]
[1756997380479,0.37368617,110290.0,110280.0,0.18750158]
[1756997380676,0.52800617,110290.0,110280.0,0.18750158]
[1756997380928,0.55501439,110300.0,110290.0,0.1813401]
[1756997381127,0.52800617,110300.0,110290.0,0.1866001]
[1756997381328,0.70932983,110300.0,110290.0,0.1866001]
[1756997381533,0.52300617,110300.0,110290.0,0.1866001]
[1756997381734,0.52800617,110300.0,110290.0,0.1866001]
[1756997382143,0.70932983,110300.0,110290.0,0.1866001]
[1756997382548,0.37368617,110300.0,110290.0,0.1866001]
[1756997383954,0.59666617,110310.0,110300.0,0.18132366]
[1756997384165,1.12467234,110310.0,110300.0,0.00526]
[1756997385018,1.12614234,110310.0,110300.0,0.00312]
[1756997385452,1.12614234,110310.0,110300.0,0.00526]
[1756997385855,1.12467234,110310.0,110300.0,0.00526]
[1756997386627,1.12614234,110310.0,110300.0,0.00526]
[1756997387260,0.3773,110310.0,110300.0,0.00526]
[1756997387474,1.12614234,110310.0,110300.0,0.00526]
[1756997388074,0.97182234,110310.0,110300.0,0.00526]
[1756997388292,0.97182234,110310.0,110300.0,0.18658366]
[1756997388293,1.12463234,110310.0,110300.0,0.18658366]
[1756997389902,1.11556698,110310.0,110300.0,0.18658366]
[1756997390659,0.37368617,110310.0,110300.0,0.18658366]
[1756997390864,0.52796617,110310.0,110300.0,0.18658366]
[1756997391096,0.70927339,110310.0,110300.0,0.18658366]
[1756997391500,0.70927339,110310.0,110300.0,0.18758366]
[1756997392149,0.52796617,110310.0,110300.0,0.18758366]
[1756997392724,0.70927339,110310.0,110300.0,0.18758366]
[1756997394854,0.70927339,110310.0,110300.0,0.00626]
[1756997395070,1.08295956,110310.0,110300.0,0.00852654]
[1756997395491,1.08442956,110310.0,110300.0,0.00412]
[1756997396090,1.08442956,110310.0,110300.0,0.001]
[1756997396991,1.08442956,110310.0,110300.0,0.00626]
[1756997400090,1.08442956,110310.0,110300.0,0.00412]
[1756997400294,1.08442956,110310.0,110300.0,0.001]
[1756997400673,0.33554722,110310.0,110300.0,0.18758366]
[1756997400880,0.70923339,110310.0,110300.0,0.00626]
[1756997401295,0.55499339,110310.0,110300.0,0.18758366]
[1756997401513,0.37336475,110310.0,110300.0,0.18758366]
[1756997401722,0.70891197,110310.0,110300.0,0.18758366]
[1756997402124,0.52760475,110310.0,110300.0,0.18758366]
[1756997402330,0.33554722,110310.0,110300.0,0.18758366]
[1756997402530,0.70891197,110310.0,110300.0,0.18758366]
[1756997402947,0.55467197,110310.0,110300.0,0.18758366]
[1756997403368,0.70891197,110310.0,110300.0,0.18758366]
[1756997403612,0.55467197,110310.0,110300.0,0.18758366]
[1756997403817,0.70891197,110310.0,110300.0,0.18758366]
[1756997404435,1.08374672,110310.0,110300.0,0.001]
[1756997406343,1.45803147,110310.0,110300.0,0.001]
[1756997406548,1.48478418,110310.0,110300.0,0.001]
[1756997406970,1.11141943,110310.0,110300.0,0.001]
[1756997407580,0.95625943,110310.0,110300.0,0.001]
[1756997407788,1.08374672,110310.0,110300.0,0.001]
[1756997409451,1.10332696,110310.0,110300.0,0.001]
[1756997410242,1.10332696,110310.0,110300.0,0.00631]
[1756997410584,1.10424696,110310.0,110300.0,0.001]
[1756997410794,1.13099967,110310.0,110300.0,0.001]
[1756997411347,1.13007967,110310.0,110300.0,0.001]
[1756997413137,1.10332696,110310.0,110300.0,0.00419]
[1756997413315,1.10185696,110310.0,110300.0,0.00631]
[1756997415301,1.10332696,110310.0,110300.0,0.00631]
[1756997415506,1.10185696,110310.0,110300.0,0.00631]
[1756997415709,0.35512746,110310.0,110300.0,0.00631]
[1756997416012,0.57425221,110310.0,110300.0,0.00631]
[1756997416251,0.54714499,110310.0,110300.0,0.1899002]
[1756997416449,0.54714499,110310.0,110300.0,0.18763366]
[1756997416813,0.37336475,110310.0,110300.0,0.18763366]
[1756997417017,0.21748831,110320.0,110310.0,0.18130722]
[1756997417141,0.0195966,110320.0,110310.0,0.18661722]
[1756997417399,0.39296135,110320.0,110310.0,0.18661722]
[1756997417802,0.39296135,110320.0,110310.0,0.27853321]
[1756997418007,0.37336475,110320.0,110310.0,0.27853321]
[1756997418172,0.59184752,110320.0,110310.0,0.27853321]
[1756997418374,0.96521227,110320.0,110310.0,0.27853321]
[1756997418904,0.96668227,110320.0,110310.0,0.09191599]
[1756997419110,1.12088227,110320.0,110310.0,0.09191599]
[1756997419311,1.12088227,110320.0,110310.0,0.09722599]
[1756997419717,1.11941227,110320.0,110310.0,0.13737472]
[1756997419928,1.11941227,110320.0,110310.0,0.31868194]
[1756997420123,1.12088227,110320.0,110310.0,0.13737472]
[1756997420335,1.11941227,110320.0,110310.0,0.13737472]
[1756997420533,1.11941227,110320.0,110310.0,0.13837472]
[1756997420709,1.13899612,110320.0,110310.0,0.13837472]
[1756997421039,0.98626633,110320.0,110310.0,0.001]
[1756997421388,0.7467295,110320.0,110310.0,0.18988356]
[1756997421523,0.36694093,110330.0,110310.0,0.27953321]
[1756997421732,0.92802029,110320.0,110310.0,0.27634321]
[1756997422332,0.92802029,110320.0,110310.0,0.27953321]
[1756997422531,0.92802029,110320.0,110310.0,0.43373321]
[1756997423084,0.7467295,110320.0,110310.0,0.43373321]
[1756997423297,0.92802029,110320.0,110310.0,0.43273321]
[1756997423909,0.7467295,110320.0,110310.0,0.43273321]
[1756997424339,0.7467295,110320.0,110310.0,0.43373321]
[1756997424543,0.7467295,110320.0,110310.0,0.47510315]
[1756997424928,0.21274093,110330.0,110320.0,0.18129079]
[1756997425129,0.39501168,110330.0,110320.0,0.18660079]
[1756997425339,0.2093451,110330.0,110320.0,0.18660079]
[1756997425889,0.0195747,110330.0,110320.0,0.18660079]
[1756997426089,0.39293945,110330.0,110320.0,0.18660079]
[1756997426950,0.70892793,110340.0,110330.0,0.18127435]
[1756997427151,1.11035616,110340.0,110330.0,0.00531]